[Event "Schack-SM 2024: Junior-SM"]
[Site "Fortnox Arena, Hejaregatan 5, Vaxjo, Sweden"]
[Date "2024.07.03"]
[Round "5.1"]
[White "Valcu, Lavinia"]
[Black "Wernberg, Hugo"]
[Result "1/2-1/2"]
[TimeControl "90 minutes for 40 moves + 30 minutes for the rest of the game + 30 seconds per move from move one."]
[BlackTitle "FM"]
[WhiteElo "1971"]
[BlackElo "2208"]

1. d4 {[%clk 01:30:56]} {[%emt 00:00:03]} d5 {[%clk 01:29:58]} {[%emt
00:01:02]} 2. Bf4 {[%clk 01:31:02]} {[%emt 00:00:23]} Nf6 {[%clk 01:30:22]}
{[%emt 00:00:07]} 3. e3 {[%clk 01:31:27]} {[%emt 00:00:05]} e6 {[%clk
01:30:46]} {[%emt 00:00:05]} 4. c4 {[%clk 01:26:24]} {[%emt 00:05:32]} Bb4+
{[%clk 01:21:46]} {[%emt 00:09:30]} 5. Nd2 {[%clk 01:22:13]} {[%emt 00:04:42]}
c5 {[%clk 00:58:12]} {[%emt 00:24:04]} 6. Ngf3 {[%clk 01:07:38]} {[%emt
00:15:05]} Nc6 {[%clk 00:52:55]} {[%emt 00:05:47]} 7. dxc5 {[%clk 01:01:56]}
{[%emt 00:06:12]} Bxc5 {[%clk 00:47:29]} {[%emt 00:05:56]} 8. a3 {[%clk
00:54:48]} {[%emt 00:07:39]} a5 {[%clk 00:41:27]} {[%emt 00:06:32]} 9. Rc1
{[%clk 00:44:21]} {[%emt 00:10:57]} Ba7 {[%clk 00:36:30]} {[%emt 00:05:27]} 10.
cxd5 {[%clk 00:38:06]} {[%emt 00:06:45]} exd5 {[%clk 00:33:42]} {[%emt
00:03:18]} 11. Bb5 {[%clk 00:37:05]} {[%emt 00:01:30]} O-O {[%clk 00:31:37]}
{[%emt 00:02:35]} 12. O-O {[%clk 00:34:48]} {[%emt 00:02:48]} d4 {[%clk
00:26:38]} {[%emt 00:05:30]} 13. e4 {[%clk 00:32:05]} {[%emt 00:03:13]} h6
{[%clk 00:21:40]} {[%emt 00:05:28]} 14. Re1 {[%clk 00:26:48]} {[%emt 00:05:46]}
Nh5 {[%clk 00:19:05]} {[%emt 00:03:05]} 15. Bg3 {[%clk 00:25:36]} {[%emt
00:01:42]} Nxg3 {[%clk 00:17:56]} {[%emt 00:01:39]} 16. hxg3 {[%clk 00:26:01]}
{[%emt 00:00:05]} Qb6 {[%clk 00:16:03]} {[%emt 00:02:23]} 17. Bd3 {[%emt
00:10:49]} Bg4 {[%clk 00:09:41]} {[%emt 00:02:15]} 18. Qc2 {[%emt 00:05:13]}
Rae8 {[%emt 00:00:07]} 19. Qb1 {[%clk 00:12:06]} {[%emt 00:05:04]} 1/2-1/2

[Event "Schack-SM 2024: Junior-SM"]
[Site "Fortnox Arena, Hejaregatan 5, Vaxjo, Sweden"]
[Date "2024.07.02"]
[Round "4.1"]
[White "Frank, Anton 2006"]
[Black "Valcu, Lavinia"]
[Result "1/2-1/2"]
[TimeControl "90 minutes for 40 moves + 30 minutes for the rest of the game + 30 seconds per move from move one."]
[WhiteElo "2131"]
[BlackElo "1971"]

1. e4 {[%clk 01:30:24]} {[%emt 00:00:35]} c5 {[%clk 01:30:51]} {[%emt
00:00:10]} 2. Nf3 {[%clk 01:30:47]} {[%emt 00:00:06]} d6 {[%clk 01:31:15]}
{[%emt 00:00:06]} 3. d4 {[%clk 01:30:50]} {[%emt 00:00:28]} cxd4 {[%clk
01:31:41]} {[%emt 00:00:05]} 4. Nxd4 {[%clk 01:31:11]} {[%emt 00:00:08]} Nf6
{[%clk 01:32:04]} {[%emt 00:00:06]} 5. Nc3 {[%clk 01:31:33]} {[%emt 00:00:08]}
a6 {[%clk 01:32:30]} {[%emt 00:00:04]} 6. Bg5 {[%clk 01:31:55]} {[%emt
00:00:08]} e6 {[%clk 01:32:55]} {[%emt 00:00:06]} 7. f4 {[%clk 01:32:05]}
{[%emt 00:00:20]} Be7 {[%clk 01:33:20]} {[%emt 00:00:04]} 8. Qf3 {[%clk
01:32:18]} {[%emt 00:00:17]} Qc7 {[%clk 01:33:44]} {[%emt 00:00:06]} 9. O-O-O
{[%clk 01:32:31]} {[%emt 00:00:17]} Nbd7 {[%clk 01:34:10]} {[%emt 00:00:04]} 10.
g4 {[%clk 01:32:45]} {[%emt 00:00:16]} b5 {[%clk 01:34:28]} {[%emt 00:00:13]}
11. Bxf6 {[%clk 01:26:12]} {[%emt 00:07:03]} Nxf6 {[%clk 01:34:23]} {[%emt
00:00:35]} 12. g5 {[%clk 01:26:34]} {[%emt 00:00:08]} Nd7 {[%clk 01:34:48]}
{[%emt 00:00:05]} 13. f5 {[%clk 01:26:38]} {[%emt 00:00:26]} O-O {[%clk
01:35:12]} {[%emt 00:00:05]} 14. Rg1 {[%clk 01:26:29]} {[%emt 00:00:40]} b4
{[%clk 01:34:57]} {[%emt 00:00:46]} 15. Na4 {[%clk 01:10:07]} {[%emt 00:16:52]}
e5 {[%clk 01:29:52]} {[%emt 00:05:34]} 16. f6 {[%clk 00:52:22]} {[%emt
00:18:15]} exd4 {[%clk 01:29:45]} {[%emt 00:00:38]} 17. fxe7 {[%clk 00:52:41]}
{[%emt 00:00:11]} Re8 {[%clk 01:29:40]} {[%emt 00:00:35]} 18. Rxd4 {[%clk
00:40:17]} {[%emt 00:12:53]} Ne5 {[%clk 01:11:29]} {[%emt 00:18:41]} 19. Qf2
{[%clk 00:27:47]} {[%emt 00:13:00]} Rb8 {[%clk 01:02:40]} {[%emt 00:09:19]} 20.
b3 {[%clk 00:26:38]} {[%emt 00:01:39]} Qxe7 {[%clk 00:56:03]} {[%emt 00:07:07]}
21. Rd2 {[%clk 00:23:02]} {[%emt 00:04:06]} Bb7 {[%clk 00:47:36]} {[%emt
00:08:57]} 22. Bg2 {[%clk 00:17:59]} {[%emt 00:05:32]} Qxg5 {[%clk 00:33:52]}
{[%emt 00:14:14]} 23. Kb1 {[%clk 00:14:19]} {[%emt 00:04:11]} Qh6 {[%clk
00:30:01]} {[%emt 00:04:21]} 24. Bh1 {[%clk 00:11:56]} {[%emt 00:02:53]} Bc6
{[%clk 00:26:05]} {[%emt 00:04:26]} 25. Nb2 {[%clk 00:11:21]} {[%emt 00:01:04]}
Re6 {[%clk 00:25:07]} {[%emt 00:01:29]} 26. Rgd1 {[%clk 00:10:20]} {[%emt
00:01:30]} Rb7 {[%clk 00:23:34]} {[%emt 00:02:02]} 27. Qf5 {[%clk 00:07:06]}
{[%emt 00:03:44]} Rbe7 {[%clk 00:22:27]} {[%emt 00:01:37]} 28. Qf2 {[%clk
00:06:30]} {[%emt 00:01:06]} Rb7 {[%clk 00:19:20]} {[%emt 00:03:38]} 29. Qf5
{[%clk 00:06:49]} {[%emt 00:00:11]} Bd7 {[%clk 00:14:35]} {[%emt 00:05:15]} 30.
Qf1 {[%clk 00:06:20]} {[%emt 00:00:58]} Bb5 {[%clk 00:14:08]} {[%emt 00:00:57]}
31. Qf5 {[%clk 00:06:32]} {[%emt 00:00:18]} Bd7 {[%clk 00:10:17]} {[%emt
00:04:21]} 32. Qf1 {[%clk 00:06:55]} {[%emt 00:00:06]} Bb5 {[%clk 00:10:23]}
{[%emt 00:00:24]} 33. Qf5 {[%clk 00:07:12]} 1/2-1/2

[Event "Schack-SM 2024: Junior-SM"]
[Site "Fortnox Arena, Hejaregatan 5, Vaxjo, Sweden"]
[Date "2024.07.02"]
[Round "4.2"]
[White "Wernberg, Hugo"]
[Black "Nilsson, Oliver"]
[Result "1-0"]
[TimeControl "90 minutes for 40 moves + 30 minutes for the rest of the game + 30 seconds per move from move one."]
[WhiteTitle "FM"]
[WhiteElo "2208"]
[BlackElo "2099"]

1. c4 {[%clk 01:30:56]} {[%emt 00:00:04]} c6 {[%clk 01:30:55]} {[%emt
00:00:05]} 2. Nf3 {[%clk 01:31:20]} {[%emt 00:00:06]} d5 {[%clk 01:31:19]}
{[%emt 00:00:05]} 3. g3 {[%clk 01:31:15]} {[%emt 00:00:36]} Nf6 {[%clk
01:31:43]} {[%emt 00:00:06]} 4. Bg2 {[%clk 01:31:40]} {[%emt 00:00:05]} g6
{[%clk 01:32:09]} {[%emt 00:00:04]} 5. O-O {[%clk 01:31:05]} {[%emt 00:01:05]}
Bg7 {[%clk 01:32:36]} {[%emt 00:00:04]} 6. b3 {[%clk 01:31:16]} {[%emt
00:00:18]} O-O {[%clk 01:32:40]} {[%emt 00:00:27]} 7. d4 {[%clk 01:31:12]}
{[%emt 00:00:33]} a5 {[%clk 01:32:52]} {[%emt 00:00:19]} 8. Bb2 {[%clk
01:30:09]} {[%emt 00:01:32]} a4 {[%clk 01:23:12]} {[%emt 00:10:11]} 9. Nc3
{[%clk 01:10:21]} {[%emt 00:20:18]} a3 {[%clk 01:12:32]} {[%emt 00:11:10]} 10.
Bc1 {[%clk 01:10:36]} {[%emt 00:00:14]} dxc4 {[%clk 00:54:13]} {[%emt
00:18:50]} 11. bxc4 {[%clk 01:10:47]} {[%emt 00:00:19]} Qa5 {[%clk 00:54:08]}
{[%emt 00:00:34]} 12. Qb3 {[%clk 00:58:44]} {[%emt 00:12:33]} b5 {[%clk
00:47:58]} {[%emt 00:06:41]} 13. cxb5 {[%clk 00:41:27]} {[%emt 00:17:47]} Be6
{[%clk 00:48:01]} {[%emt 00:00:26]} 14. Qc2 {[%clk 00:41:17]} {[%emt 00:00:40]}
cxb5 {[%clk 00:46:37]} {[%emt 00:01:54]} 15. Ng5 {[%clk 00:37:38]} {[%emt
00:04:09]} Bf5 {[%clk 00:13:50]} {[%emt 00:33:18]} 16. e4 {[%clk 00:28:32]}
{[%emt 00:09:36]} Rc8 {[%clk 00:14:02]} {[%emt 00:00:19]} 17. exf5 {[%clk
00:19:46]} {[%emt 00:09:15]} Rxc3 {[%clk 00:11:25]} {[%emt 00:03:07]} 18. Qb1
{[%clk 00:19:37]} {[%emt 00:00:39]} b4 {[%clk 00:03:23]} {[%emt 00:08:32]} 19.
Bd2 {[%clk 00:17:56]} {[%emt 00:02:11]} Nd5 {[%clk 00:02:54]} {[%emt 00:00:59]}
20. Bxc3 {[%clk 00:17:22]} {[%emt 00:01:04]} Nxc3 {[%clk 00:03:01]} {[%emt
00:00:24]} 21. Qb3 {[%clk 00:16:06]} {[%emt 00:01:45]} Nd7 {[%clk 00:00:39]}
{[%emt 00:02:53]} 22. Qxf7+ {[%clk 00:12:29]} {[%emt 00:04:06]} Kh8 {[%clk
00:01:06]} {[%emt 00:00:04]} 23. Ne6 {[%clk 00:12:43]} {[%emt 00:00:15]} Rg8
{[%clk 00:01:08]} {[%emt 00:00:28]} 24. Nxg7 {[%clk 00:12:48]} {[%emt
00:00:25]} 1-0

[Event "Schack-SM 2024: Junior-SM"]
[Site "Fortnox Arena, Hejaregatan 5, Vaxjo, Sweden"]
[Date "2024.07.02"]
[Round "4.3"]
[White "Grahn, Vidar"]
[Black "Rasti, Arvin"]
[Result "1-0"]
[TimeControl "90 minutes for 40 moves + 30 minutes for the rest of the game + 30 seconds per move from move one."]
[WhiteTitle "FM"]
[BlackTitle "FM"]
[WhiteElo "2264"]
[BlackElo "2210"]

1. d4 {[%clk 01:30:56]} {[%emt 00:00:03]} Nf6 {[%clk 01:25:59]} {[%emt
00:05:01]} 2. c4 {[%clk 01:31:23]} {[%emt 00:00:04]} c5 {[%clk 01:26:18]}
{[%emt 00:00:11]} 3. d5 {[%clk 01:31:38]} {[%emt 00:00:15]} b5 {[%clk
01:26:41]} {[%emt 00:00:07]} 4. cxb5 {[%clk 01:31:54]} {[%emt 00:00:14]} a6
{[%clk 01:27:06]} {[%emt 00:00:05]} 5. bxa6 {[%clk 01:32:18]} {[%emt 00:00:06]}
g6 {[%clk 01:27:28]} {[%emt 00:00:07]} 6. Nc3 {[%clk 01:32:43]} {[%emt
00:00:06]} Bg7 {[%clk 01:27:54]} {[%emt 00:00:05]} 7. Nf3 {[%clk 01:31:42]}
{[%emt 00:01:30]} O-O {[%clk 01:28:15]} {[%emt 00:00:09]} 8. g3 {[%clk
01:31:49]} {[%emt 00:00:24]} Bxa6 {[%clk 01:26:47]} {[%emt 00:01:56]} 9. Bg2
{[%clk 01:31:59]} {[%emt 00:00:21]} d6 {[%clk 01:27:10]} {[%emt 00:00:07]} 10.
O-O {[%clk 01:32:20]} {[%emt 00:00:09]} Nbd7 {[%clk 01:26:54]} {[%emt
00:00:47]} 11. Rb1 {[%clk 01:32:38]} {[%emt 00:00:12]} Qa5 {[%clk 01:26:08]}
{[%emt 00:01:15]} 12. a4 {[%clk 01:31:50]} {[%emt 00:01:19]} Rfb8 {[%clk
01:25:40]} {[%emt 00:00:57]} 13. Bd2 {[%clk 01:30:16]} {[%emt 00:02:04]} Ng4
{[%clk 01:14:28]} {[%emt 00:11:42]} 14. Qc2 {[%clk 01:27:31]} {[%emt 00:03:16]}
Qc7 {[%clk 01:09:34]} {[%emt 00:05:24]} 15. b3 {[%clk 01:26:31]} {[%emt
00:01:29]} Rb7 {[%clk 01:07:59]} {[%emt 00:02:04]} 16. h3 {[%clk 01:21:05]}
{[%emt 00:05:57]} Ngf6 {[%clk 01:08:06]} {[%emt 00:00:22]} 17. Rfe1 {[%clk
01:19:35]} {[%emt 00:02:01]} Rab8 {[%clk 01:07:27]} {[%emt 00:01:09]} 18. e4
{[%clk 01:18:36]} {[%emt 00:01:29]} Qc8 {[%clk 01:06:13]} {[%emt 00:01:44]} 19.
Na2 {[%clk 01:04:41]} {[%emt 00:14:26]} Rc7 {[%clk 00:59:27]} {[%emt 00:07:15]}
20. Bc3 {[%clk 01:01:51]} {[%emt 00:03:20]} Nb6 {[%clk 00:54:21]} {[%emt
00:05:36]} 21. Nd2 {[%clk 00:57:20]} {[%emt 00:05:01]} Qd7 {[%clk 00:49:54]}
{[%emt 00:04:58]} 22. a5 {[%clk 00:56:15]} {[%emt 00:01:35]} Nc8 {[%clk
00:50:15]} {[%emt 00:00:09]} 23. Nc4 {[%clk 00:55:45]} {[%emt 00:00:59]} e6
{[%clk 00:50:32]} {[%emt 00:00:13]} 24. dxe6 {[%clk 00:51:56]} {[%emt
00:04:19]} fxe6 {[%clk 00:49:20]} {[%emt 00:01:42]} 25. e5 {[%clk 00:47:36]}
{[%emt 00:04:50]} Nd5 {[%clk 00:49:32]} {[%emt 00:00:18]} 26. Rbd1 {[%clk
00:44:56]} {[%emt 00:03:10]} dxe5 {[%clk 00:44:45]} {[%emt 00:05:17]} 27. Nxe5
{[%clk 00:43:44]} {[%emt 00:01:42]} Qb5 {[%clk 00:44:31]} {[%emt 00:00:44]} 28.
Rxd5 {[%clk 00:43:11]} {[%emt 00:01:03]} exd5 {[%clk 00:44:52]} {[%emt
00:00:08]} 29. Bxd5+ {[%clk 00:43:36]} {[%emt 00:00:05]} Kf8 {[%clk 00:45:03]}
{[%emt 00:00:19]} 30. Bc4 {[%clk 00:42:56]} {[%emt 00:01:11]} Qb7 {[%clk
00:45:21]} {[%emt 00:00:13]} 31. Nxg6+ {[%clk 00:42:31]} {[%emt 00:00:55]} hxg6
{[%clk 00:45:43]} {[%emt 00:00:07]} 32. Qxg6 {[%clk 00:42:56]} {[%emt
00:00:05]} 1-0

[Event "Schack-SM 2024: Junior-SM"]
[Site "Fortnox Arena, Hejaregatan 5, Vaxjo, Sweden"]
[Date "2024.07.02"]
[Round "4.4"]
[White "Soderstrom, Adrian"]
[Black "Seo, Jung Hyun"]
[Result "0-1"]
[TimeControl "90 minutes for 40 moves + 30 minutes for the rest of the game + 30 seconds per move from move one."]
[WhiteTitle "FM"]
[WhiteElo "2351"]
[BlackElo "2137"]

1. d4 {[%clk 01:30:49]} {[%emt 00:00:10]} Nf6 {[%clk 01:30:35]} {[%emt
00:00:26]} 2. c4 {[%clk 01:30:55]} {[%emt 00:00:24]} e6 {[%clk 01:31:03]}
{[%emt 00:00:03]} 3. Nf3 {[%clk 01:30:49]} {[%emt 00:00:35]} d5 {[%clk
01:31:24]} {[%emt 00:00:09]} 4. g3 {[%clk 01:31:12]} {[%emt 00:00:07]} dxc4
{[%clk 01:31:45]} {[%emt 00:00:09]} 5. Bg2 {[%clk 01:31:35]} {[%emt 00:00:07]}
a6 {[%clk 01:32:09]} {[%emt 00:00:06]} 6. O-O {[%clk 01:31:41]} {[%emt
00:00:23]} Nc6 {[%clk 01:32:35]} {[%emt 00:00:04]} 7. Nc3 {[%clk 01:31:34]}
{[%emt 00:00:37]} Rb8 {[%clk 01:28:09]} {[%emt 00:04:56]} 8. e4 {[%clk
01:31:13]} {[%emt 00:00:51]} Be7 {[%clk 01:25:47]} {[%emt 00:02:52]} 9. Qe2
{[%clk 01:30:51]} {[%emt 00:00:53]} b5 {[%clk 01:19:04]} {[%emt 00:07:13]} 10.
Rd1 {[%clk 01:31:13]} {[%emt 00:00:08]} O-O {[%clk 01:17:35]} {[%emt 00:01:59]}
11. d5 {[%clk 01:31:14]} {[%emt 00:00:29]} exd5 {[%clk 01:15:58]} {[%emt
00:02:07]} 12. e5 {[%clk 01:31:31]} {[%emt 00:00:13]} d4 {[%clk 01:15:31]}
{[%emt 00:00:57]} 13. exf6 {[%clk 01:31:52]} Bxf6 {[%clk 01:16:00]} 14. Ne4
{[%clk 01:31:26]} {[%emt 00:00:57]} Be7 {[%clk 01:09:53]} {[%emt 00:06:37]} 15.
b3 {[%clk 01:27:23]} {[%emt 00:04:33]} f5 {[%clk 01:06:06]} {[%emt 00:04:17]}
16. bxc4 {[%clk 01:24:50]} {[%emt 00:03:02]} fxe4 {[%clk 01:05:02]} {[%emt
00:01:35]} 17. Qxe4 {[%clk 01:25:14]} {[%emt 00:00:06]} Bb7 {[%clk 01:05:05]}
{[%emt 00:00:27]} 18. Bf4 {[%clk 01:05:04]} {[%emt 00:20:39]} Bf6 {[%clk
00:59:01]} {[%emt 00:06:35]} 19. cxb5 {[%clk 01:02:56]} {[%emt 00:02:38]} Ne5
{[%clk 00:52:01]} {[%emt 00:07:30]} 20. Qe2 {[%clk 00:50:53]} {[%emt 00:12:34]}
d3 {[%clk 00:46:05]} {[%emt 00:06:26]} 21. Qe3 {[%clk 00:50:32]} {[%emt
00:00:50]} Bxf3 {[%clk 00:42:50]} {[%emt 00:03:43]} 22. Bxf3 {[%clk 00:47:15]}
{[%emt 00:03:49]} Nxf3+ {[%clk 00:43:12]} {[%emt 00:00:08]} 23. Qxf3 {[%clk
00:47:43]} {[%emt 00:00:02]} Bxa1 {[%clk 00:43:27]} {[%emt 00:00:15]} 24. Rxa1
{[%clk 00:48:05]} {[%emt 00:00:08]} Rxb5 {[%clk 00:43:40]} {[%emt 00:00:18]} 25.
Qc6 {[%clk 00:47:43]} {[%emt 00:00:51]} Qd5 {[%clk 00:38:55]} {[%emt 00:05:12]}
26. Qxc7 {[%clk 00:46:55]} {[%emt 00:01:20]} Rc5 {[%clk 00:38:20]} {[%emt
00:01:06]} 27. Qe7 {[%clk 00:46:44]} {[%emt 00:00:41]} Rc6 {[%clk 00:37:06]}
{[%emt 00:01:43]} 28. Qe3 {[%clk 00:44:23]} {[%emt 00:02:52]} Re6 {[%clk
00:35:55]} {[%emt 00:01:41]} 29. Qd2 {[%clk 00:44:12]} {[%emt 00:00:41]} Re2
{[%clk 00:34:06]} {[%emt 00:02:15]} 30. Qc3 {[%clk 00:43:35]} {[%emt 00:01:11]}
d2 {[%clk 00:30:43]} {[%emt 00:03:53]} 31. Rd1 {[%clk 00:43:45]} {[%emt
00:00:20]} Rfe8 {[%clk 00:31:05]} {[%emt 00:00:09]} 32. Bxd2 {[%clk 00:42:11]}
{[%emt 00:02:03]} Rd8 {[%clk 00:31:14]} {[%emt 00:00:21]} 33. Re1 {[%clk
00:40:46]} {[%emt 00:01:54]} Rxd2 {[%clk 00:31:17]} {[%emt 00:00:27]} 0-1

[Event "Schack-SM 2024: Junior-SM"]
[Site "Fortnox Arena, Hejaregatan 5, Vaxjo, Sweden"]
[Date "2024.07.02"]
[Round "4.5"]
[White "Falkevall, Axel"]
[Black "Strom-Engdahl, Alexander"]
[Result "1-0"]
[TimeControl "90 minutes for 40 moves + 30 minutes for the rest of the game + 30 seconds per move from move one."]
[WhiteTitle "FM"]
[WhiteElo "2318"]
[BlackElo "2191"]

1. d4 {[%clk 01:30:54]} {[%emt 00:00:07]} Nf6 {[%clk 01:29:38]} {[%emt
00:01:22]} 2. c4 {[%clk 01:31:17]} {[%emt 00:00:07]} e6 {[%clk 01:30:04]}
{[%emt 00:00:05]} 3. Nf3 {[%clk 01:31:42]} {[%emt 00:00:04]} b6 {[%clk
01:30:29]} {[%emt 00:00:05]} 4. g3 {[%clk 01:32:00]} {[%emt 00:00:11]} Bb7
{[%clk 01:30:42]} {[%emt 00:00:18]} 5. Bg2 {[%clk 01:32:20]} {[%emt 00:00:10]}
Be7 {[%clk 01:30:58]} {[%emt 00:00:14]} 6. O-O {[%clk 01:32:41]} {[%emt
00:00:08]} O-O {[%clk 01:31:25]} {[%emt 00:00:04]} 7. d5 {[%clk 01:31:55]}
{[%emt 00:01:16]} exd5 {[%clk 01:31:38]} {[%emt 00:00:17]} 8. Nh4 {[%clk
01:32:19]} {[%emt 00:00:06]} c6 {[%clk 01:32:02]} {[%emt 00:00:06]} 9. cxd5
{[%clk 01:32:05]} {[%emt 00:00:44]} Nxd5 {[%clk 01:32:20]} {[%emt 00:00:12]} 10.
Nf5 {[%clk 01:32:30]} {[%emt 00:00:05]} Nc7 {[%clk 01:32:38]} {[%emt 00:00:11]}
11. e4 {[%clk 01:31:34]} {[%emt 00:01:26]} d5 {[%clk 01:27:21]} {[%emt
00:05:48]} 12. exd5 {[%clk 01:30:02]} {[%emt 00:02:02]} cxd5 {[%clk 01:24:57]}
{[%emt 00:02:54]} 13. Nc3 {[%clk 01:22:11]} {[%emt 00:08:21]} Nd7 {[%clk
01:13:37]} {[%emt 00:11:50]} 14. Nxd5 {[%clk 01:07:27]} {[%emt 00:15:14]} Nxd5
{[%clk 01:13:06]} {[%emt 00:01:01]} 15. Bxd5 {[%clk 01:07:52]} {[%emt
00:00:04]} Bxd5 {[%clk 01:13:25]} {[%emt 00:00:12]} 16. Qxd5 {[%clk 01:08:17]}
{[%emt 00:00:05]} Nf6 {[%clk 01:13:37]} {[%emt 00:00:17]} 17. Qf3 {[%clk
01:06:16]} {[%emt 00:02:31]} Bc5 {[%clk 01:04:54]} {[%emt 00:09:14]} 18. Rd1
{[%clk 00:59:50]} {[%emt 00:06:55]} Qe8 {[%clk 01:03:54]} {[%emt 00:01:31]} 19.
b4 {[%clk 00:57:07]} {[%emt 00:03:13]} Bxb4 {[%clk 01:02:05]} {[%emt 00:02:20]}
20. Bb2 {[%clk 00:56:47]} {[%emt 00:00:49]} Qe6 {[%clk 00:33:16]} {[%emt
00:29:18]} 21. a3 {[%clk 00:54:32]} {[%emt 00:02:45]} Bc5 {[%clk 00:30:36]}
{[%emt 00:03:10]} 22. Re1 {[%clk 00:54:05]} {[%emt 00:00:57]} Qd5 {[%clk
00:27:48]} {[%emt 00:03:19]} 23. Nh6+ {[%clk 00:54:19]} {[%emt 00:00:16]} Kh8
{[%clk 00:28:10]} {[%emt 00:00:07]} 24. Qxf6 {[%clk 00:54:39]} {[%emt
00:00:10]} gxf6 {[%clk 00:28:33]} {[%emt 00:00:08]} 25. Bxf6# {[%clk 00:55:04]}
{[%emt 00:00:04]} 1-0

[Event "Schack-SM 2024: Junior-SM"]
[Site "Fortnox Arena, Hejaregatan 5, Vaxjo, Sweden"]
[Date "2024.07.01"]
[Round "3.2"]
[White "Valcu, Lavinia"]
[Black "Grahn, Vidar"]
[Result "1/2-1/2"]
[TimeControl "90 minutes for 40 moves + 30 minutes for the rest of the game + 30 seconds per move from move one."]
[BlackTitle "FM"]
[WhiteElo "1971"]
[BlackElo "2264"]

1. d4 {[%clk 01:30:57]} d5 {[%clk 01:30:55]} {[%emt 00:00:03]} 2. c4 {[%clk
01:31:18]} {[%emt 00:00:10]} e6 {[%clk 01:31:21]} {[%emt 00:00:03]} 3. Nf3
{[%clk 01:31:41]} {[%emt 00:00:06]} Nf6 {[%clk 01:31:45]} {[%emt 00:00:07]} 4.
g3 {[%clk 01:32:00]} {[%emt 00:00:11]} Bb4+ {[%clk 01:32:04]} {[%emt 00:00:10]}
5. Bd2 {[%clk 01:32:21]} {[%emt 00:00:09]} a5 {[%clk 01:32:22]} {[%emt
00:00:13]} 6. Bg2 {[%clk 01:32:38]} {[%emt 00:00:13]} O-O {[%clk 01:32:44]}
{[%emt 00:00:08]} 7. O-O {[%clk 01:32:55]} {[%emt 00:00:12]} dxc4 {[%clk
01:32:45]} {[%emt 00:00:30]} 8. Qc2 {[%clk 01:29:53]} {[%emt 00:03:31]} b5
{[%clk 01:27:51]} {[%emt 00:05:25]} 9. a4 {[%clk 01:20:08]} {[%emt 00:10:15]}
bxa4 {[%clk 01:15:54]} {[%emt 00:12:28]} 10. Na3 {[%clk 01:02:43]} {[%emt
00:17:54]} Bb7 {[%clk 01:07:45]} {[%emt 00:08:39]} 11. Nxc4 {[%clk 00:59:16]}
{[%emt 00:03:57]} Bd5 {[%clk 01:04:11]} {[%emt 00:04:05]} 12. Rxa4 {[%clk
00:44:38]} {[%emt 00:15:08]} Nc6 {[%clk 01:01:51]} {[%emt 00:02:49]} 13. Nce5
{[%clk 00:36:30]} {[%emt 00:08:38]} Ra6 {[%clk 00:46:39]} {[%emt 00:15:42]} 14.
Qd3 {[%clk 00:30:24]} {[%emt 00:06:36]} Rb6 {[%clk 00:38:43]} {[%emt 00:08:27]}
15. Bg5 {[%clk 00:28:27]} {[%emt 00:02:25]} Be7 {[%clk 00:32:53]} {[%emt
00:06:21]} 16. Nxc6 {[%clk 00:24:55]} {[%emt 00:04:03]} Bxc6 {[%clk 00:32:22]}
{[%emt 00:01:00]} 17. Rxa5 {[%clk 00:24:54]} {[%emt 00:00:31]} Rxb2 {[%clk
00:31:27]} {[%emt 00:01:26]} 18. Rc1 {[%clk 00:20:47]} {[%emt 00:04:37]} Be4
{[%clk 00:27:33]} {[%emt 00:04:24]} 19. Qe3 {[%clk 00:18:58]} {[%emt 00:02:18]}
Bd5 {[%clk 00:23:39]} {[%emt 00:04:24]} 20. Ra7 {[%clk 00:14:35]} {[%emt
00:04:54]} c6 {[%clk 00:19:28]} {[%emt 00:04:41]} 21. h4 {[%clk 00:09:40]}
{[%emt 00:05:25]} h6 {[%clk 00:17:41]} {[%emt 00:02:17]} 22. Bxf6 {[%clk
00:07:33]} {[%emt 00:02:37]} Bxf6 {[%clk 00:18:05]} {[%emt 00:00:05]} 23. Qd3
{[%clk 00:06:54]} {[%emt 00:01:09]} Bxf3 {[%clk 00:15:37]} {[%emt 00:02:58]} 24.
Bxf3 {[%clk 00:05:22]} {[%emt 00:02:03]} Bxd4 {[%clk 00:15:57]} {[%emt
00:00:10]} 25. Rd1 {[%clk 00:03:06]} {[%emt 00:02:46]} e5 {[%clk 00:09:51]}
{[%emt 00:06:36]} 26. e3 {[%clk 00:02:42]} {[%emt 00:00:53]} e4 {[%clk
00:06:06]} {[%emt 00:04:16]} 27. Qxe4 {[%clk 00:02:17]} {[%emt 00:00:55]} Bxa7
{[%clk 00:04:54]} {[%emt 00:01:42]} 28. Rxd8 {[%clk 00:02:40]} {[%emt
00:00:07]} Rxd8 {[%clk 00:05:20]} {[%emt 00:00:04]} 29. Qxc6 {[%clk 00:02:08]}
{[%emt 00:01:01]} Rbd2 {[%clk 00:04:45]} {[%emt 00:01:04]} 30. Qb7 {[%clk
00:01:31]} {[%emt 00:01:08]} R2d7 {[%clk 00:04:51]} {[%emt 00:00:23]} 31. Qe4
{[%clk 00:01:52]} {[%emt 00:00:09]} Bb8 {[%clk 00:03:34]} {[%emt 00:01:48]} 32.
Bg4 {[%clk 00:01:31]} {[%emt 00:00:51]} Rd6 {[%clk 00:03:36]} {[%emt 00:00:29]}
33. Qf3 {[%clk 00:01:19]} {[%emt 00:00:42]} Rf6 {[%clk 00:03:20]} {[%emt
00:00:45]} 34. Qe2 {[%clk 00:01:45]} {[%emt 00:00:05]} g6 {[%clk 00:03:21]}
{[%emt 00:00:29]} 35. h5 {[%clk 00:02:03]} {[%emt 00:00:12]} Rfd6 {[%clk
00:02:21]} {[%emt 00:01:30]} 1/2-1/2